fUST/lending_fUST_20251206
["ID","MTS","AMOUNT","RATE_DAILY","PERIOD"]
[396421093,1764964262348,-629.93,0.00016712,2]
[396421094,1764964262359,-500.0,0.00016712,2]
[396421095,1764964262370,-500.0,0.00016712,2]
[396421096,1764964262380,-500.0,0.00016712,2]
[396421097,1764964262389,-4537.01,0.00016712,2]
[396421098,1764964262398,-208.92972745,0.00016712,2]
[396421099,1764964262407,-500.0,0.00016712,2]
[396421100,1764964262416,-1340.59,0.00016712,2]
[396421101,1764964262425,-1160.08,0.00016712,2]
[396421102,1764964262434,-500.0,0.00016712,2]
[396421103,1764964262443,-6149.82,0.00016712,2]
[396421104,1764964262452,-2978.24,0.00016712,2]
[396421105,1764964262461,-500.0,0.00016712,2]
[396421106,1764964262472,-566.43,0.00016712,2]
[396421107,1764964262482,-500.0,0.00016712,2]
[396421108,1764964262492,-1483.55,0.00016712,2]
[396421109,1764964262502,-509.98393256,0.00016712,2]
[396421110,1764964262512,-2769.97,0.00016712,2]
[396421111,1764964262523,-1249.37,0.00016712,2]
[396421112,1764964262535,-500.0,0.00016712,2]
[396421113,1764964262544,-500.0,0.00016712,2]
[396421114,1764964262554,-603.32,0.00016712,2]
[396421115,1764964262563,-500.0,0.00016712,2]
[396421116,1764964262572,-500.0,0.00016712,2]
[396421117,1764964262580,-1573.31,0.00016712,2]
[396421118,1764964262590,-2626.61,0.00016712,2]
[396421119,1764964262599,-500.0,0.00016712,2]
[396421120,1764964262608,-644.84832323,0.00016712,2]
[396421121,1764964262618,-5057.213907,0.00016712,2]
[396421122,1764964262627,-500.0,0.00016712,2]
[396421123,1764964262637,-4802.09,0.00016712,2]
[396421124,1764964262646,-500.0,0.00016712,2]
[396421125,1764964262656,-500.0,0.00016712,2]
[396421126,1764964262666,-999.44,0.00016712,2]
[396421127,1764964262675,-1503.75,0.00016712,2]
[396421128,1764964262685,-19450.21,0.00016712,2]
[396421129,1764964262694,-500.0,0.00016712,2]
[396421130,1764964262704,-500.0,0.00016712,2]
[396421131,1764964262714,-242.52999006,0.00016712,2]
[396421132,1764964262723,-500.0,0.00016712,2]
[396421133,1764964262735,-307.55020317,0.00016712,2]
[396421134,1764964262744,-1075.02,0.00016712,2]
[396421135,1764964262755,-500.0,0.00016712,2]
[396421136,1764964262764,-500.0,0.00016712,2]
[396421137,1764964262775,-1106.6,0.00016712,2]
[396421138,1764964262784,-500.0,0.00016712,2]
[396421139,1764964262794,-500.0,0.00016712,2]
[396421140,1764964262804,-840.72,0.00016712,2]
[396421141,1764964262813,-500.0,0.00016712,2]
[396421142,1764964262823,-1613.52,0.00016712,2]
[396421143,1764964262832,-500.0,0.00016712,2]
[396421144,1764964262842,-500.0,0.00016712,2]
[396421145,1764964262851,-518.4,0.00016712,2]
[396421146,1764964262862,-500.0,0.00016712,2]
[396421147,1764964262871,-3055.31,0.00016712,2]
[396421148,1764964262880,-994.67,0.00016712,2]
[396421149,1764964262889,-500.0,0.00016712,2]
[396421150,1764964262898,-500.0,0.00016712,2]
[396421151,1764964262909,-994.61,0.00016712,2]
[396421152,1764964262918,-5779.12,0.00016712,2]
[396421153,1764964262927,-500.0,0.00016712,2]
[396421154,1764964262937,-541.54,0.00016712,2]
[396421155,1764964262947,-497.12073264,0.00016712,2]
[396421156,1764964262957,-500.0,0.00016712,2]
[396421157,1764964262966,-2703.83,0.00016712,2]
[396421158,1764964262976,-13490.98,0.00016712,2]
[396421159,1764964262986,-723.64,0.00016712,2]
[396421160,1764964262999,-2375.57,0.00016712,2]
[396421161,1764964263009,-500.0,0.00016712,2]
[396421162,1764964263018,-500.0,0.00016712,2]
[396421163,1764964263028,-1855.42,0.00016712,2]
[396421164,1764964263038,-500.0,0.00016712,2]
[396421165,1764964263048,-1108.58,0.00016712,2]
[396421166,1764964263057,-981.84,0.00016712,2]
[396421167,1764964263068,-500.0,0.00016712,2]
[396421168,1764964263078,-500.0,0.00016712,2]
[396421169,1764964263088,-500.0,0.00016712,2]
[396421170,1764964263098,-8333.33,0.00016712,2]
[396421171,1764964263230,-505.07,0.00016712,2]
[396421172,1764964263240,-3168.21,0.00016712,2]
[396421173,1764964263249,-8522.94,0.00016712,2]
[396421174,1764964263259,-500.0,0.00016712,2]
[396421175,1764964263268,-2974.3,0.00016712,2]
[396421176,1764964263278,-882.76,0.00016712,2]
[396421177,1764964263288,-500.0,0.00016712,2]
[396421178,1764964263298,-500.0,0.00016712,2]
[396421179,1764964263307,-773.39,0.00016712,2]
[396421180,1764964263317,-500.0,0.00016712,2]
[396421181,1764964263327,-500.0,0.00016712,2]
[396421182,1764964263337,-500.0,0.00016712,2]
[396421183,1764964263347,-500.0,0.00016712,2]
[396421184,1764964263357,-1466.62,0.00016712,2]
[396421185,1764964263366,-500.0,0.00016712,2]
[396421186,1764964263376,-500.0,0.00016712,2]
[396421187,1764964263386,-169.728144,0.00016712,2]
[396421188,1764964263396,-1900.64,0.00016712,2]
[396421189,1764964263405,-5166.32,0.00016712,2]
[396421190,1764964263415,-500.0,0.00016712,2]
[396421191,1764964263425,-559.78,0.00016712,2]
[396421192,1764964263435,-500.0,0.00016712,2]
[396421193,1764964263444,-500.0,0.00016712,2]
[396421194,1764964263455,-579.43,0.00016712,2]
[396421195,1764964263464,-500.0,0.00016712,2]
[396421196,1764964263473,-1126.56,0.00016712,2]
[396421197,1764964263483,-531.72,0.00016712,2]
[396421198,1764964263493,-500.0,0.00016712,2]
[396421199,1764964263503,-7493.2,0.00016712,2]
[396421200,1764964263512,-1357.94,0.00016712,2]
[396421201,1764964263521,-500.0,0.00016712,2]
[396421202,1764964263530,-500.0,0.00016712,2]
[396421203,1764964263539,-2140.67,0.00016712,2]
[396421204,1764964263549,-504.84,0.00016712,2]
[396421205,1764964263558,-500.0,0.00016712,2]
[396421206,1764964263568,-1456.29,0.00016712,2]
[396421207,1764964263578,-500.0,0.00016712,2]
[396421208,1764964263587,-1852.77,0.00016712,2]
[396421209,1764964263598,-5290.3,0.00016712,2]
[396421210,1764964263608,-500.0,0.00016712,2]
[396421211,1764964263618,-18021.5,0.00016712,2]
[396421212,1764964263627,-5946.49,0.00016712,2]
[396421213,1764964263637,-500.0,0.00016712,2]
[396421214,1764964263646,-1141.14,0.00016712,2]
[396421215,1764964263656,-500.0,0.00016712,2]
[396421216,1764964263666,-5755.4,0.00016712,2]
[396421217,1764964263676,-500.0,0.00016712,2]
[396421218,1764964263686,-899.33,0.00016712,2]
[396421219,1764964263696,-500.0,0.00016712,2]
[396421220,1764964263706,-500.0,0.00016712,2]
[396421221,1764964263715,-500.0,0.00016712,2]
[396421222,1764964263725,-500.0,0.00016712,2]
[396421223,1764964263734,-1193.75,0.00016712,2]
[396421224,1764964263744,-500.0,0.00016712,2]
[396421225,1764964263754,-500.0,0.00016712,2]
[396421226,1764964263763,-500.0,0.00016712,2]
[396421227,1764964263772,-18224.67,0.00016712,2]
[396421228,1764964263782,-2555.22,0.00016712,2]
[396421229,1764964263791,-500.0,0.00016712,2]
[396421230,1764964263803,-500.0,0.00016712,2]
[396421231,1764964263813,-15992.22,0.00016712,2]
[396421232,1764964263823,-500.0,0.00016712,2]
[396421233,1764964263832,-500.0,0.00016712,2]
[396421234,1764964263841,-500.0,0.00016712,2]
[396421235,1764964263852,-608.69944196,0.00016712,2]
[396421236,1764964263862,-2246.86,0.00016712,2]
[396421237,1764964263871,-500.0,0.00016712,2]
[396421238,1764964263880,-500.0,0.00016712,2]
[396421239,1764964263890,-500.0,0.00016712,2]
[396421240,1764964263900,-500.0,0.00016712,2]
[396421241,1764964263909,-1396.97,0.00016712,2]
[396421242,1764964263918,-420.62830049,0.00016712,2]
[396421243,1764964263928,-699.92,0.00016712,2]
[396421244,1764964263937,-1327.48,0.00016712,2]
[396421245,1764964263947,-3223.39,0.00016712,2]
[396421246,1764964263956,-1347.5,0.00016712,2]
[396421247,1764964263965,-500.0,0.00016712,2]
[396421248,1764964263974,-2513.49,0.00016712,2]
[396421249,1764964263983,-667.1,0.00016712,2]
[396421250,1764964263996,-500.0,0.00016712,2]
[396421251,1764964264005,-500.0,0.00016712,2]
[396421252,1764964264014,-500.0,0.00016712,2]
[396421253,1764964264023,-2175.03,0.00016712,2]
[396421254,1764964264034,-40156.73,0.00016712,2]
[396421255,1764964264043,-906.92,0.00016712,2]
[396421256,1764964264053,-500.0,0.00016712,2]
[396421257,1764964264063,-10167.34,0.00016712,2]
[396421258,1764964264074,-338.98618214,0.00016712,2]
[396421259,1764964264083,-871.12,0.00016712,2]
[396421260,1764964264093,-3602.82,0.00016712,2]
[396421261,1764964264103,-323.43,0.00016712,2]
[396421262,1764964264112,-690.39,0.00016712,2]
[396421263,1764964264121,-570.25,0.00016712,2]
[396421264,1764964264130,-3182.83,0.00016712,2]
[396421265,1764964264140,-500.0,0.00016712,2]
[396421266,1764964264149,-500.0,0.00016712,2]
[396421267,1764964264158,-500.0,0.00016712,2]
[396421268,1764964264168,-2410.62,0.00016712,2]
[396421269,1764964264177,-500.0,0.00016712,2]
[396421270,1764964264186,-500.0,0.00016712,2]
[396421271,1764964264196,-500.0,0.00016712,2]
[396421272,1764964264205,-2260.75,0.00016712,2]
[396421273,1764964264214,-1031.43,0.00016712,2]
[396421274,1764964264223,-469.18016175,0.00016712,2]
[396421275,1764964264233,-500.0,0.00016712,2]
[396421276,1764964264244,-500.0,0.00016712,2]
[396421277,1764964264254,-1240.63,0.00016712,2]
[396421278,1764964264264,-500.0,0.00016712,2]
[396421279,1764964264274,-3147.39,0.00016712,2]
[396421280,1764964264285,-500.0,0.00016712,2]
[396421281,1764964264296,-535.52,0.00016712,2]
[396421282,1764964264305,-3754.05,0.00016712,2]
[396421283,1764964264315,-2393.17,0.00016712,2]
[396421284,1764964264324,-500.0,0.00016712,2]
[396421285,1764964264334,-640.85,0.00016712,2]
[396421286,1764964264343,-700.33,0.00016712,2]
[396421287,1764964264353,-2634.96,0.00016712,2]
[396421288,1764964264362,-500.0,0.00016712,2]
[396421289,1764964264371,-3889.17,0.00016712,2]
[396421290,1764964264381,-500.0,0.00016712,2]
[396421291,1764964264391,-500.0,0.00016712,2]
[396421292,1764964264400,-786.42,0.00016712,2]
[396421293,1764964264410,-500.0,0.00016712,2]
[396421294,1764964264419,-500.0,0.00016712,2]
[396421295,1764964264428,-1453.14,0.00016712,2]
[396421296,1764964264438,-500.0,0.00016712,2]
[396421297,1764964264447,-2259.44,0.00016712,2]
[396421298,1764964264457,-642.0,0.00016712,2]
[396421299,1764964264467,-500.0,0.00016712,2]
[396421300,1764964264477,-500.0,0.00016712,2]
[396421301,1764964264487,-500.0,0.00016712,2]
[396421302,1764964264496,-7930.82,0.00016712,2]
[396421303,1764964264508,-500.0,0.00016712,2]
[396421304,1764964264517,-3536.79,0.00016712,2]
[396421305,1764964264526,-257.16662418,0.00016944,2]
[396421306,1764964264536,-2876.18991768,0.00016975,2]
[396421307,1764964264545,-500.0,0.00016986,2]
[396421308,1764964264555,-500.0,0.00016986,2]
[396421309,1764964264564,-500.0,0.00016986,2]
[396421310,1764964264574,-500.0,0.00016986,2]
[396421311,1764964264583,-500.0,0.00016986,2]
[396421312,1764964264592,-500.0,0.00016986,2]
[396421313,1764964264603,-500.0,0.00016986,2]
[396421314,1764964264613,-519.18418738,0.00016986,2]
[396421315,1764964264623,-500.0,0.00016986,2]
[396421316,1764964264632,-500.0,0.00016986,2]
[396421317,1764964264642,-500.0,0.00016986,2]
[396421318,1764964264653,-500.0,0.00016986,2]
[396421319,1764964264662,-674.84,0.00016986,2]
[396421320,1764964264671,-500.0,0.00016986,2]
[396421321,1764964264682,-759.28,0.00016986,2]
[396421322,1764964264691,-500.0,0.00016986,2]
[396421323,1764964264701,-821.01,0.00016986,2]
[396421324,1764964264710,-3248.83,0.00016986,2]
[396421325,1764964264720,-500.0,0.00016986,2]
[396421326,1764964264731,-500.0,0.00016986,2]
[396421327,1764964264740,-766.62,0.00016986,2]
[396421328,1764964264750,-596.14,0.00016986,2]
[396421329,1764964264760,-677.48,0.00016986,2]
[396421330,1764964264771,-500.0,0.00016986,2]
[396421331,1764964264780,-710.03,0.00016986,2]
[396421332,1764964264789,-500.0,0.00016986,2]
[396421333,1764964264799,-500.0,0.00016986,2]
[396421334,1764964264808,-978.11,0.00016986,2]
[396421335,1764964264818,-500.0,0.00016986,2]
[396421336,1764964264828,-950.77,0.00016986,2]
[396421337,1764964264837,-2195.96,0.00016986,2]
[396421338,1764964264846,-500.0,0.00016986,2]
[396421339,1764964264856,-500.0,0.00016986,2]
[396421340,1764964264865,-831.34,0.00016986,2]
[396421341,1764964264875,-500.0,0.00016986,2]
[396421342,1764964264885,-609.85,0.00016986,2]
[396421343,1764964264894,-500.0,0.00016986,2]
[396421344,1764964264903,-1164.68,0.00016986,2]
[396421345,1764964264914,-500.0,0.00016986,2]
[396421346,1764964264924,-500.0,0.00016986,2]
[396421347,1764964264934,-768.78,0.00016986,2]
[396421348,1764964264945,-609.15,0.00016986,2]
[396421349,1764964264956,-500.0,0.00016986,2]
[396421350,1764964264965,-1330.04,0.00016986,2]
[396421351,1764964264974,-913.97,0.00016986,2]
[396421352,1764964264983,-500.0,0.00016986,2]
[396421353,1764964264997,-500.0,0.00016986,2]
[396421354,1764964265007,-500.0,0.00016986,2]
[396421355,1764964265017,-500.0,0.00016986,2]
[396421356,1764964265026,-500.0,0.00016986,2]
[396421357,1764964265037,-500.0,0.00016986,2]
[396421358,1764964265047,-646.57592275,0.00016986,2]
[396421359,1764964265057,-738.1,0.00016986,2]
[396421360,1764964265068,-500.0,0.00016986,2]
[396421361,1764964265080,-1071.4,0.00016986,2]
[396421362,1764964265090,-1543.99,0.00016986,2]
[396421363,1764964265099,-500.0,0.00016986,2]
[396421364,1764964265108,-1862.41,0.00016986,2]
[396421365,1764964265117,-500.0,0.00016986,2]
[396421366,1764964265127,-500.0,0.00016986,2]
[396421367,1764964265136,-500.0,0.00016986,2]
[396421368,1764964265145,-939.06,0.00016986,2]
[396421369,1764964265154,-407.97416362,0.00016986,2]
[396421370,1764964265163,-1733.31,0.00016986,2]
[396421371,1764964265173,-2719.16,0.00016986,2]
[396421372,1764964265181,-826.15,0.00016986,2]
[396421373,1764964265191,-500.0,0.00016986,2]
[396421374,1764964265200,-500.0,0.00016986,2]
[396421375,1764964265211,-500.0,0.00016986,2]
[396421376,1764964265221,-1078.39,0.00016986,2]
[396421377,1764964265230,-708.58,0.00016986,2]
[396421378,1764964265239,-1771.78,0.00016986,2]
[396421379,1764964265250,-500.0,0.00016986,2]
[396421380,1764964265259,-500.0,0.00016986,2]
[396421381,1764964265268,-500.0,0.00016986,2]
[396421382,1764964265277,-500.0,0.00016986,2]
[396421383,1764964265286,-500.0,0.00016986,2]
[396421384,1764964265295,-629.1792981,0.00016986,2]
[396421385,1764964265305,-500.0,0.00016986,2]
[396421386,1764964265314,-500.0,0.00016986,2]
[396421387,1764964265323,-500.0,0.00016986,2]
[396421388,1764964265617,-672.42,0.00016986,2]
[396421389,1764964265639,-874.07,0.00016986,2]
[396421390,1764964265649,-562.60227662,0.00016986,2]
[396421391,1764964265659,-500.0,0.00016986,2]
[396421392,1764964265668,-500.0,0.00016986,2]
[396421393,1764964265678,-611.92,0.00016986,2]
[396421394,1764964265687,-2821.54,0.00016986,2]
[396421395,1764964265697,-500.0,0.00016986,2]
[396421396,1764964265707,-500.0,0.00016986,2]
[396421397,1764964265717,-500.0,0.00016986,2]
[396421398,1764964265726,-500.0,0.00016986,2]
[396421399,1764964265736,-500.0,0.00016986,2]
[396421400,1764964265745,-636.11,0.00016986,2]
[396421401,1764964265755,-971.51,0.00016986,2]
[396421402,1764964265765,-906.08,0.00016986,2]
[396421403,1764964265775,-500.0,0.00016986,2]
[396421404,1764964265784,-571.85,0.00016986,2]
[396421405,1764964265794,-500.0,0.00016986,2]
[396421406,1764964265803,-500.0,0.00016986,2]
[396421407,1764964265813,-500.0,0.00016986,2]
[396421408,1764964265823,-500.0,0.00016986,2]
[396421409,1764964265832,-500.0,0.00016986,2]
[396421410,1764964265842,-1069.86,0.00016986,2]
[396421411,1764964265851,-510.11184608,0.00016986,2]
[396421412,1764964265860,-500.0,0.00016986,2]
[396421413,1764964265870,-500.0,0.00016986,2]
[396421414,1764964265880,-500.0,0.00016986,2]
[396421415,1764964265890,-1462.76,0.00016986,2]
[396421416,1764964265901,-502.82,0.00016986,2]
[396421417,1764964265912,-500.0,0.00016986,2]
[396421418,1764964265922,-500.0,0.00016986,2]
[396421419,1764964265932,-500.0,0.00016986,2]
[396421420,1764964265942,-2534.3,0.00016986,2]
[396421421,1764964265951,-500.0,0.00016986,2]
[396421422,1764964265961,-500.0,0.00016986,2]
[396421423,1764964265970,-500.0,0.00016986,2]
[396421424,1764964265980,-500.0,0.00016986,2]
[396421425,1764964265992,-500.0,0.00016986,2]
[396421426,1764964266002,-518.33424144,0.00016986,2]
[396421427,1764964266014,-647.83,0.00016986,2]
[396421428,1764964266023,-500.0,0.00016986,2]
[396421429,1764964266035,-1092.74,0.00016986,2]
[396421430,1764964266044,-500.0,0.00016986,2]
[396421431,1764964266055,-500.0,0.00016986,2]
[396421432,1764964266068,-500.0,0.00016986,2]
[396421433,1764964266077,-306.31261775,0.00016986,2]
[396421434,1764964266089,-500.0,0.00016986,2]
[396421435,1764964266099,-1405.79,0.00016986,2]
[396421436,1764964266109,-1078.91,0.00016986,2]
[396421437,1764964266119,-500.0,0.00016986,2]
[396421438,1764964266129,-1311.8,0.00016986,2]
[396421439,1764964266140,-500.0,0.00016986,2]
[396421440,1764964266150,-1734.17,0.00016986,2]
[396421441,1764964266159,-698.12,0.00016986,2]
[396421442,1764964266169,-1866.07,0.00016986,2]
[396421443,1764964266178,-500.0,0.00016986,2]
[396421444,1764964266187,-500.0,0.00016986,2]
[396421445,1764964266197,-500.0,0.00016986,2]
[396421446,1764964266207,-500.0,0.00016986,2]
[396421447,1764964266218,-500.0,0.00016986,2]
[396421448,1764964266227,-1534.72,0.00016986,2]
[396421449,1764964266237,-524.96,0.00016986,2]
[396421450,1764964266246,-500.0,0.00016986,2]
[396421451,1764964266257,-500.0,0.00016986,2]
[396421452,1764964266266,-500.0,0.00016986,2]
[396421453,1764964266275,-2060.56,0.00016986,2]
[396421454,1764964266284,-500.0,0.00016986,2]
[396421455,1764964266294,-500.0,0.00016986,2]
[396421456,1764964266304,-673.73,0.00016986,2]
[396421457,1764964266313,-701.23,0.00016986,2]
[396421458,1764964266323,-1698.62,0.00016986,2]
[396421459,1764964266332,-658.93,0.00016986,2]
[396421460,1764964266342,-500.0,0.00016986,2]
[396421461,1764964266351,-742.38,0.00016986,2]
[396421462,1764964266361,-747.63,0.00016986,2]
[396421463,1764964266370,-667.01,0.00016986,2]
[396421464,1764964266379,-500.0,0.00016986,2]
[396421465,1764964266388,-500.0,0.00016986,2]
[396421466,1764964266397,-500.0,0.00016986,2]
[396421467,1764964266407,-1151.69,0.00016986,2]
[396421468,1764964266416,-721.72,0.00016986,2]
[396421469,1764964266426,-500.0,0.00016986,2]
[396421470,1764964266435,-991.55,0.00016986,2]
[396421471,1764964266445,-500.0,0.00016986,2]
[396421472,1764964266454,-500.0,0.00016986,2]
[396421473,1764964266463,-504.96524028,0.00016986,2]
[396421474,1764964266474,-500.0,0.00016986,2]
[396421475,1764964266487,-500.0,0.00016986,2]
[396421476,1764964266498,-596.6,0.00016986,2]
[396421477,1764964266508,-1963.89,0.00016986,2]
[396421478,1764964266517,-2056.09,0.00016986,2]
[396421479,1764964266528,-500.0,0.00016986,2]
[396421480,1764964266538,-500.0,0.00016986,2]
[396421481,1764964266547,-1932.03,0.00016986,2]
[396421482,1764964266556,-1925.2,0.00016986,2]
[396421483,1764964266566,-694.04,0.00016986,2]
[396421484,1764964266575,-1279.51,0.00016986,2]
[396421485,1764964266584,-500.0,0.00016986,2]
[396421486,1764964266594,-552.82,0.00016986,2]
[396421487,1764964266603,-500.73331121,0.00016986,2]
[396421488,1764964266612,-1066.32,0.00016986,2]
[396421489,1764964266622,-500.0,0.00016986,2]
[396421490,1764964266631,-1282.6,0.00016986,2]
[396421491,1764964266641,-500.0,0.00016986,2]
[396421492,1764964266651,-1077.48,0.00016986,2]
[396421493,1764964266660,-500.0,0.00016986,2]
[396421494,1764964266670,-500.0,0.00016986,2]
[396421495,1764964266679,-500.0,0.00016986,2]
[396421496,1764964266689,-500.0,0.00016986,2]
[396421497,1764964266698,-1056.93,0.00016986,2]
[396421498,1764964266710,-798.61,0.00016986,2]
[396421499,1764964266720,-1405.18,0.00016986,2]
[396421500,1764964266730,-500.0,0.00016986,2]
[396421501,1764964266739,-500.0,0.00016986,2]
[396421502,1764964266748,-1114.7,0.00016986,2]
[396421503,1764964266758,-867.37,0.00016986,2]
[396421504,1764964266768,-500.0,0.00016986,2]
[396421505,1764964266777,-773.03,0.00016986,2]
[396421506,1764964266787,-2394.89,0.00016986,2]
[396421507,1764964266796,-500.4,0.00016986,2]
[396421508,1764964266806,-500.0,0.00016986,2]
[396421509,1764964266815,-1140.55,0.00016986,2]
[396421510,1764964266825,-500.0,0.00016986,2]
[396421511,1764964266834,-507.01,0.00016986,2]
[396421512,1764964266844,-500.0,0.00016986,2]
[396421513,1764964266853,-500.0,0.00016986,2]
[396421514,1764964266863,-753.55,0.00016986,2]
[396421515,1764964266872,-527.23359564,0.00016986,2]
[396421516,1764964266881,-500.0,0.00016986,2]
[396421517,1764964266891,-500.0,0.00016986,2]
[396421518,1764964266901,-500.0,0.00016986,2]
[396421519,1764964266910,-1160.45,0.00016986,2]
[396421520,1764964266919,-500.0,0.00016986,2]
[396421521,1764964266929,-801.76,0.00016986,2]
[396421522,1764964266939,-542.43,0.00016986,2]
[396421523,1764964266949,-2713.85,0.00016986,2]
[396421524,1764964266959,-500.0,0.00016986,2]
[396421525,1764964266969,-500.0,0.00016986,2]
[396421526,1764964266979,-914.46,0.00016986,2]
[396421527,1764964266990,-500.0,0.00016986,2]
[396421528,1764964267004,-500.0,0.00016986,2]
[396421529,1764964267014,-4419.03,0.00016986,2]
[396421530,1764964267026,-500.0,0.00016986,2]
[396421531,1764964267036,-526.41,0.00016986,2]
[396421532,1764964267046,-468.44620649,0.00016986,2]
[396421533,1764964267057,-588.91,0.00016986,2]
[396421534,1764964267068,-509.73756167,0.00016986,2]
[396421535,1764964267077,-981.61,0.00016986,2]
[396421536,1764964267087,-562.03,0.00016986,2]
[396421537,1764964267096,-1146.46,0.00016986,2]
[396421538,1764964267106,-500.0,0.00016986,2]
[396421539,1764964267116,-1195.63,0.00016986,2]
[396421540,1764964267126,-500.0,0.00016986,2]
[396421541,1764964267135,-500.0,0.00016986,2]
[396421542,1764964267146,-500.0,0.00016986,2]
[396421543,1764964267155,-2202.96,0.00016986,2]
[396421544,1764964267165,-500.0,0.00016986,2]
[396421545,1764964267175,-769.64,0.00016986,2]
[396421546,1764964267185,-500.0,0.00016986,2]
[396421547,1764964267195,-2092.31,0.00016986,2]
[396421548,1764964267204,-813.86,0.00016986,2]
[396421549,1764964267214,-530.06,0.00016986,2]
[396421550,1764964267224,-500.0,0.00016986,2]
[396421551,1764964267233,-500.0,0.00016986,2]
[396421552,1764964267243,-500.0,0.00016986,2]
[396421553,1764964267253,-708.5,0.00016986,2]
[396421554,1764964267264,-500.0,0.00016986,2]
[396421555,1764964267274,-500.0,0.00016986,2]
[396421556,1764964267284,-528.45,0.00016986,2]
[396421557,1764964267293,-500.0,0.00016986,2]
[396421558,1764964267303,-532.79,0.00016986,2]
[396421559,1764964267313,-500.0,0.00016986,2]
[396421560,1764964267323,-1131.46,0.00016986,2]
[396421561,1764964267332,-1131.9,0.00016986,2]
[396421562,1764964267342,-500.0,0.00016986,2]
[396421563,1764964267352,-500.0,0.00016986,2]
[396421564,1764964267361,-375.48129423,0.00016986,2]
[396421565,1764964267371,-500.0,0.00016986,2]
[396421566,1764964267380,-500.0,0.00016986,2]
[396421567,1764964267390,-608.86,0.00016986,2]
[396421568,1764964267402,-880.35,0.00016986,2]
[396421569,1764964267411,-784.6,0.00016986,2]
[396421570,1764964267421,-500.0,0.00016986,2]
[396421571,1764964267432,-611.41954944,0.00016986,2]
[396421572,1764964267441,-589.81,0.00016986,2]
[396421573,1764964267451,-500.0,0.00016986,2]
[396421574,1764964267460,-500.0,0.00016986,2]
[396421575,1764964267469,-500.0,0.00016986,2]
[396421576,1764964267478,-537.52,0.00016986,2]
[396421577,1764964267487,-1014.04,0.00016986,2]
[396421578,1764964267497,-2220.46,0.00016986,2]
[396421579,1764964267507,-2190.66,0.00016986,2]
[396421580,1764964267516,-500.0,0.00016986,2]
[396421581,1764964267525,-500.0,0.00016986,2]
[396421582,1764964267535,-1158.75,0.00016986,2]
[396421583,1764964267545,-500.0,0.00016986,2]
[396421584,1764964267554,-500.0,0.00016986,2]
[396421585,1764964267563,-681.06,0.00016986,2]
[396421586,1764964267573,-500.0,0.00016986,2]
[396421587,1764964267583,-2115.78,0.00016986,2]
[396421588,1764964267592,-500.0,0.00016986,2]
[396421589,1764964267601,-766.35,0.00016986,2]
[396421590,1764964267611,-966.12,0.00016986,2]
[396421591,1764964267621,-914.28,0.00016986,2]
[396421592,1764964267631,-982.55,0.00016986,2]